Cogmind - Beta 12 @@@ ROGUE MODE // 2023.04.05 @ 21:43:43 Player: btmk16 Result: Destroyed by as-38333 with Assembled Rifle Performance ------------- Evolutions (0) 0 Regions Visited (2) 400 Robots Destroyed (29) 145 Value Destroyed (451) 451 Prototype IDs (2) 40 Alien Tech Used (0) 0 Bonus (0) 0 TOTAL SCORE: 1036 Bonus ------- None Cogmind --------- Core Integrity 0/250 Matter 278/300 Energy 350/350 System Corruption 0% Temperature Cool (0) Movement Treading (160) Location -10/Mines Parts ------- > --- POWER (1) -------- (None) > --- PROPULSION (2) --- Improved Treads Improved Treads > --- UTILITY (2) ------ Large Storage Unit High-capacity Battery > --- WEAPON (2) ------- (None) > --- INVENTORY (15) --- Light Ion Engine Improved Treads Improved Treads Improved Treads Improved Treads Improved Treads Improved Treads Huge Storage Unit Experimental Sensor Array Signal Interpreter Hacking Suite EM Pulse Gun Light Assault Rifle Peak State ------------ > --- POWER ------------ Light Ion Engine > --- PROPULSION ------- Light Treads Light Treads > --- UTILITY ---------- Large Storage Unit Improved Terrain Scanner > --- WEAPON ----------- Assault Rifle Light Assault Rifle > --- INVENTORY -------- Improved Treads Improved Treads Improved Treads Improved Treads Improved Treads Improved Treads Wheel Wheel High-capacity Battery Hacking Suite EM Pulse Gun Light Assault Rifle [Rating: 11] Favorites ----------- Power Light Ion Engine Engine Light Ion Engine Propulsion Light Treads Treads Light Treads Utility Improved Terrain Scanner Device Improved Terrain Scanner Storage Large Storage Unit Weapon Light Assault Rifle Ballistic Gun Light Assault Rifle Build | -11 -10 -10 ------- Run | Jun Mat Min Slots Evolved . | . . . Power . | . . . Propulsion . | . . . Utility . | . . . Weapon . | . . . Parts Attached 13 | 7 4 2 Power 2 | 1 1 . Engine 2 | 1 1 . Core . | . . . Reactor . | . . . Propulsion 4 | 2 . 2 Treads 4 | 2 . 2 Leg . | . . . Wheel . | . . . Hover . | . . . Flight . | . . . Utility 4 | 2 2 . Device 1 | 1 . . Storage 3 | 1 2 . Processor . | . . . Hackware . | . . . Protection . | . . . Artifact . | . . . Weapon 3 | 2 1 . Energy Gun . | . . . Energy Cannon . | . . . Ballistic Gun 3 | 2 1 . Ballistic Cannon . | . . . Launcher . | . . . Special Weapon . | . . . Impact Weapon . | . . . Slashing Weapon . | . . . Piercing Weapon . | . . . Special Melee Weapon . | . . . Unidentified Prototypes . | . . . Parts Lost 7 | . 2 5 Power 2 | . 1 1 Propulsion 2 | . . 2 Utility 1 | . 1 . Weapon 2 | . . 2 Highest Loss Streak 5 | . 1 5 To Critical Strikes . | . . . Average Slot Usage (%) 98 | . 99 93 Engine 13 | . 13 12 Treads 28 | . 28 28 Device 9 | . 11 . Storage 18 | . 16 28 Ballistic Gun 27 | . 28 23 Naked Turns . | . . . Heaviest Build 30 | 12 30 30 Greatest Support 46 | 40 40 46 Greatest Overweight (x) . | . . . Average Overweight (x) . | . . . Largest Inventory Capacity 15 | 8 15 15 Average Capacity 12 | 7 12 15 Most Carried 15 | 6 15 15 Average Carried 11 | 4 11 14 Final Capacity 15 | 8 15 15 Final Carried 15 | 6 15 13 Class Distribution -------------------- 100% | Mutant Dominant Class ---------------- Mutant | -10/Materials Mutant | -10/Mines Resources | -11 -10 -10 ----------- Run | Jun Mat Min Matter Collected 643 | 236 382 25 Remotely . | . . . Salvage Created 801 | 130 603 68 Parts 58 | 6 48 4 Haulers Intercepted . | . . . Recyclers Shooed 2 | 1 1 . Parts Field Recycled . | . . . Retrieved Matter . | . . . Parts Self-Destructed . | . . . Prevented . | . . . Kills | -11 -10 -10 ------- Run | Jun Mat Min Combat Hostiles Destroyed 19 | . 16 3 Guns 19 | . 16 3 Classes Destroyed 7 | 2 5 . Worker 2 | . 1 1 Tunneler 3 | 2 1 . Recycler 2 | 1 1 . Operator 2 | . 2 . Watcher 1 | . 1 . Swarmer 12 | . 9 3 Grunt 7 | . 7 . Best Kill Streak 6 | 3 6 4 Combat Bots Only 6 | . 6 3 Max Kills in Single Turn 2 | 1 1 2 Gunslinging . | . . . Exploded . | . . . Melee . | . . . Uniques/NPCs Destroyed . | . . . Combat | -11 -10 -10 -------- Run | Jun Mat Min Damage Taken 1042 | . 475 567 Core 252 | . 95 157 Absorbed by Shields . | . . . Core Remaining (%) 100 | 100 . . Volleys Fired 93 | 6 81 6 Largest 2 | 2 2 2 Hottest 40 | 40 40 40 Shots Fired 186 | 12 162 12 Gun 186 | 12 162 12 Cannon . | . . . Launcher . | . . . Special . | . . . Kinetic 186 | 12 162 12 Thermal . | . . . Explosive . | . . . Electromagnetic . | . . . Robot Hit Streak 13 | 4 13 2 Robot Miss Streak 4 | 3 4 2 Penetration Max . | . . . Secondary Targets . | . . . Shots Hit Robots 108 | 6 96 6 Core Hits 46 | 4 38 4 Critical Kills . | . . . Critical Parts Destroyed 1 | . 1 . Critical Strikes 1 | . 1 . Destroy 1 | . 1 . Melee Attacks . | . . . Impact . | . . . Slashing . | . . . Piercing . | . . . Sneak Attacks . | . . . Combat Hostiles . | . . . Follow-up Attacks . | . . . Damage Inflicted 1197 | 75 1045 77 Guns 1193 | 75 1045 73 Cannons . | . . . Explosions . | . . . Melee . | . . . Ramming 4 | . . 4 Kinetic 1193 | 75 1045 73 Thermal . | . . . Explosive . | . . . Electromagnetic . | . . . Impact . | . . . Slashing . | . . . Piercing . | . . . Highest Corruption . | . . . Average Corruption . | . . . Corruption Purged . | . . . Corruption Blocked . | . . . Overload Shots . | . . . Overflow Damage . | . . . Projectiles . | . . . Explosions . | . . . Melee . | . . . Knockbacks . | . . . Impact . | . . . Kinetic . | . . . Secondary . | . . . Self-Inflicted Damage . | . . . Shots . | . . . Rammed 1 | . . 1 Targets Rammed 1 | . . 1 Kicked . | . . . Crushed . | . . . Highest Temperature 6 | . 6 . Average Temperature 6 | . 6 . Received Heat Transfer 90 | . 90 . Siege Activations . | . . . Robots Corrupted . | . . . Combat Hostiles . | . . . Parts Fried . | . . . Impact Corruptions . | . . . Robots Melted . | . . . Combat Hostiles . | . . . Parts Melted . | . . . Heat Transferred . | . . . Parts Sabotaged . | . . . Parts Stolen . | . . . Parts Stripped . | . . . Power Chain Reactions . | . . . Missiles Intercepted . | . . . Alert | -11 -10 -10 ------- Run | Jun Mat Min Peak Influence 296 | 15 296 138 Initial 48 | . 9 48 Average 132 | 6 156 68 Maximum Alert Level 1 | . 1 . Low Security (%) 78 | 100 72 100 Level 1 21 | . 27 . Level 2 . | . . . Level 3 . | . . . Level 4 . | . . . Level 5 . | . . . High Security . | . . . Max Security . | . . . Squads Dispatched 5 | . 5 . Investigation 2 | . 2 . Extermination . | . . . Reinforcement 3 | . 3 . Assault . | . . . Garrison . | . . . Intercept . | . . . Searches Triggered . | . . . Construction Impeded . | . . . Haulers Reinforced . | . . . Active Scanning Responses . | . . . Cargo Convoy Interrupts . | . . . Stealth | -11 -10 -10 --------- Run | Jun Mat Min Distress Signals 3 | . 3 . Communications Jammed . | . . . Distress Signals . | . . . Times Spotted 57 | . 30 27 Peak Tracking Total 21 | . 7 21 Tactical Retreats 4 | . 2 2 Traps | -11 -10 -10 ------- Run | Jun Mat Min Traps Triggered 2 | . 2 . Indirectly . | . . . Trap Hack Attempts . | . . . Triggered . | . . . Disarmed . | . . . Reprogrammed . | . . . Reused . | . . . Traps Extracted . | . . . Installed . | . . . Triggered . | . . . Machines | -11 -10 -10 ---------- Run | Jun Mat Min Machines Disabled 1 | . 1 . Max in Single Turn 1 | . 1 . Machines Repaired . | . . . Machines Sabotaged . | . . . Overloaded Fab Kills . | . . . Hacking | -11 -10 -10 --------- Run | Jun Mat Min Machines Accessed 6 | . 5 1 Terminals 5 | . 5 . Fabricators . | . . . Repair Stations . | . . . Recycling Units . | . . . Scanalyzers . | . . . Garrison Access . | . . . Total Hacks 14 | . 13 1 Successful 5 | . 4 1 Failed 8 | . 8 . Catastrophic 2 | . 2 . Database Lockouts 1 | . 1 . Manual 10 | . 10 . Terminals 13 | . 13 . Fabricators . | . . . Repair Stations . | . . . Recycling Units . | . . . Scanalyzers . | . . . Garrison Access . | . . . Terminal Hacks 5 | . 4 1 Robot Analysis 1 | . 1 . Prototype ID Bank 1 | . 1 . Open Door 1 | . . 1 Recall Investigation 1 | . 1 . Hauler Manifests 1 | . 1 . Fabricator Hacks . | . . . Repair Station Hacks . | . . . Recycling Unit Hacks . | . . . Scanalyzer . | . . . Garrison Access Hacks . | . . . Unauthorized Hacks . | . . . Terminals . | . . . Fabricators . | . . . Repair Stations . | . . . Recycling Units . | . . . Scanalyzers . | . . . Garrison Access . | . . . Data Cores Recovered . | . . . Used . | . . . Hacking Detections 1 | . 1 . Full Trace Events . | . . . Feedback Events . | . . . Feedback Blocked . | . . . Robot Schematics Acquired . | . . . Robots Built . | . . . Authchips . | . . . Time . | . . . Total Robot Build Rating . | . . . Part Schematics Acquired . | . . . Parts Built . | . . . Authchips . | . . . Time . | . . . Total Part Build Rating . | . . . Parts Repaired . | . . . Time . | . . . Parts Recycled . | . . . Recycled Matter . | . . . Retrieved Matter . | . . . Retrieved Components . | . . . Parts Scanalyzed . | . . . Part Schematics Acquired . | . . . Parts Damaged . | . . . Bothacking | -11 -10 -10 ------------ Run | Jun Mat Min Used RIF Installer . | . . . Robots Hacked . | . . . Non-combat . | . . . Combat . | . . . Robot Hacks Applied . | . . . Relay Couplers Released . | . . . Fabnet Peak Effective % . | . . . Robots Rewired . | . . . Allies Hacked . | . . . Hacks Repelled . | . . . Allies | -11 -10 -10 -------- Run | Jun Mat Min Total Allies . | . . . Largest Group . | . . . Highest-Rated Group . | . . . Highest-Rated Ally . | . . . Total Orders . | . . . Ally Attacks . | . . . Total Damage . | . . . Kills . | . . . Allies Corrupted . | . . . Allies Melted . | . . . Intel | -11 -10 -10 ------- Run | Jun Mat Min Robot Analysis Total 1 | . 1 . Derelict Logs Recovered . | . . . Drone Launches . | . . . Drone Recoveries . | . . . Exploration | -11 -10 -10 ------------- Run | Jun Mat Min Turns Passed 1806 | 114 1400 292 Spaces Moved 926 | 52 705 169 Core 1 | 1 . . Treads 925 | 51 705 169 Legs . | . . . Wheels . | . . . Hover . | . . . Flight . | . . . Fastest Speed 50 | 50 160 160 Average Speed 159 | 157 160 160 Slowest Speed 160 | 160 160 160 Overloaded Moves . | . . . Propulsion Burnouts . | . . . Robots Hopped . | . . . Cave-ins Triggered . | . . . Exploration Rate (%) 45 | 4 96 36 Regions Visited 2 Branch Regions 1 Pre-discovered Areas . | . . . Known Exits Taken . | . . . Unknown Exits Taken 2 | 1 1 . Scrap Searched . | . . . Spaces Dug . | . . . Terrain Destroyed . | . . . Melee . | . . . Projectile . | . . . AOE . | . . . Terrain Rammed . | . . . Walls Destroyed . | . . . Machines Disabled . | . . . Actions | -11 -10 -10 --------- Run | Jun Mat Min Total 1084 | 70 834 180 Wait 26 | . 26 . Move 924 | 51 704 169 Hop . | . . . Pick Up 21 | 6 14 1 Fast Attach 7 | 7 . . Attach 4 | . 2 2 Detach . | . . . Swap 2 | . 2 . Drop 6 | . 5 1 Fire 93 | 6 81 6 Melee . | . . . Ram . | . . . Kick . | . . . Crush 1 | . . 1 Escape Stasis . | . . . Rewire . | . . . Trap . | . . . Miscellaneous . | . . . Route ------- -11/Junkyard -10/Materials (discovered 4 exits: [*Mat x3] / *Min) -10/Mines (discovered 1 exit: [*Mat]) History --------- Turn | Location | Event 24 | -11/Junkyard | Discovered new exit (range 15) 115 | -11/Junkyard | Entered Materials 306 | -10/Materials | Build established: Mutant 359 | -10/Materials | Discovered new exit (range 16) 596 | -10/Materials | Discovered new exit (range 13) 1012 | -10/Materials | Discovered new exit (range 8) 1140 | -10/Materials | Central database locked down 1314 | -10/Materials | Discovered new exit (range 4) 1515 | -10/Materials | Entered Mines 1628 | -10/Mines | Met a Derelict who couldn't figure out how to use a Trap Extractor 1634 | -10/Mines | Discovered new exit (range 15) 1743 | -10/Mines | Found a damaged Exp. Sensor Array with a note attached 1744 | -10/Mines | Assembled infested the area 1747 | -10/Mines | Found Prototype Device 1749 | -10/Mines | Assisted by a Guerilla fighting off Assembled 1766 | -10/Mines | Core integrity fell below 50% 1776 | -10/Mines | Core integrity fell below 20% 1795 | -10/Mines | Lost 5 parts (1p2n2w) 1807 | -10/Mines | Destroyed by as-38333 with Assembled Rifle Last Messages --------------- 01770_ K-01 Serf collects debris. 01770_ as-96773 destroyed. 01770_ D-53 Grenadier destroyed. 01771_ The unstable cave ceiling collapses. 01773_ Core Extractor disabled. 01774_ The unstable cave ceiling collapses. 01784_ K-01 Serf collects debris. 01786_ as-70661 sneak attacks. 01786_ U-05 Engineer system corrupted by crushing effect. 01787_ U-05 Engineer system terminally corrupted. 01798_ as-70661 sneak attacks. 01798_ K-01 Serf system corrupted by crushing effect. 01798_ K-01 Serf knocked back. 01799_ K-01 Serf system terminally corrupted. 01801_ T-07 Excavator destroyed. 01803_ as-70661 sneak attacks. 01803_ R-06 Scavenger system corrupted by crushing effect. 01804_ R-06 Scavenger system terminally corrupted. 01804_ K-01 Serf collects debris. 01804_ U-05 Engineer destroyed. Map ----- +----------------------------------------------------+ | ?????????# #??????# #??# #?????? | | ?????????# #??????# #?# ##????? | | ?????????# #??????# #?# #????? | | ?????????# #??##### ### ????? | | ?????????# #### ## ## ???? | | ?????????# #?????? | | ?????????# #???????? | | ?????????####### #????????? | | ???????????# /### * ##???????? | | ???????????# ! !# %# #??????## | | ???????????# ! =# #????? ? | | ???????????# =! # #?#### ?? | | ??????????## # # #?# ??? | | ??????????## !### !% % #?# #??? | | ??????????###### ### ### #### | | ??????????##### a ##?## ## | | ?????????????## a ####???# !% # | | ????????????##%a ##?????## # | | ????????????# a#?????## = | | ????????????# a #?????# | | ????????????# %=#?????# | | ????????????#ka! #?????# # | | ???????????## #?????## # | | ??????????## #??????### ## | | ?????????## #????????##########* | | ?????????# @ #???????????????##=% | | ?????????# < #???????????????# %! | | ?????????## ##???????????????# | | ??????????## ###????????????????# | | ???????????####??????????????????## | | ??????????????????????????????????## | | ???????????????????????????????????" | | ??????????????????????????????????? | | ??????????????????????????????????? | | ?????????????????????????????????? | | ?????????????????????????????????? | | ?????????????????????????????????? | | ????????????????????????????????? | | ????????????????????????????????? % | | ?????????????????????????????????# | | ?????????????????????????????????## | | ??????????????????????????????????# | | ??????????????????????????????????? | | ????????????????????????????????????? | | ????????????????????????????????????? | | ????????????????????????????????????? | | ????????????????????????????????????? | | ????????????????????????????????????? | | ????????????????????????????????????? | | ????????????????????????????????????? | +----------------------------------------------------+ Best States ------------- Heat Dissipation 25 Energy Generation 10 Energy Capacity 375 Matter Stores 300 Matter Capacity 300 Sight Range 16 Terrain Scan Range 16 Terrain Scan Density 10 Evasion (%) 40 Recoil Reduction 2 Item Schematics ----------------- None Robot Schematics ------------------ None Fabricated ------------ Nothing Alien Tech Used ----------------- None Achievements -------------- None Challenges ------------ None Game ------ Seed NeutronSpectralRegenerator Manual? 0 Play Time 00:13:38 Cumulative 620.9 hours Start 2023.04.05 @ 21:31:36 End 2023.04.05 @ 21:43:43 Sessions 1 Manual Loads 0 Difficulty Rogue Special Mode None Game No. 641 Rogue 640 Adventurer 0 Explorer 1 Win Type - Total 30 Types 21/0/6/3/0/0/0/0/0 Lore% 84 Gallery% 92 Achievement% 78 Wizard Run 0 Options --------- ASCII 0 Keyboard 1 Movement Vi Keybinds 0 Fullscreen 1 Font 18/SmallcapsGlow Map View 76x50 Tactical HUD 1 Map Filters NONE Filters NONE Steam 1 RUN: af30df72-34ac-4269-b4ef-03f5901bb5ff